bitfinex/quotes_ETHUSD_20241122
["timestamp","ask_amount","ask_price","bid_price","bid_amount"]
[1732257451547,3.49140642,3361.0,3360.5,0.2963]
[1732257453029,4.24280642,3361.3,3360.5,0.2963]
[1732257454140,3.49140642,3361.3,3360.5,0.2963]
[1732257454753,3.49140642,3361.3,3359.9,0.2963]
[1732257454922,3.49140642,3361.3,3359.7,0.02975807]
[1732257454923,4.2478529,3361.3,3360.1,0.2963]
[1732257455120,3.49140642,3361.3,3360.3,0.2963]
[1732257455425,3.49140642,3361.5,3360.9,0.2963]
[1732257455827,3.49140642,3361.5,3360.0,3.02975523]
[1732257455828,3.49140642,3361.8,3361.1,0.2963]
[1732257456124,0.7514,3362.6,3361.5,0.2963]
[1732257456312,3.49140642,3362.4,3361.7,0.2963]
[1732257456514,3.91568706,3362.4,3361.7,0.2963]
[1732257457545,3.91568706,3362.4,3360.7,0.0297484]
[1732257457546,0.42428064,3362.4,3361.2,0.2963]
[1732257457752,3.7514,3362.6,3361.6,0.2963]
[1732257457955,5.53095742,3363.0,3362.0,0.2963]
[1732257458114,5.53095742,3363.0,3362.2,0.2963]
[1732257458115,6.08405316,3363.0,3362.2,0.2963]
[1732257458464,6.08405316,3363.0,3361.1,0.02974465]
[1732257458465,4.77955742,3363.0,3362.4,0.2963]
[1732257458624,0.1,3363.0,3362.6,0.2963]
[1732257459149,0.1,3363.0,3362.8,0.2963]
[1732257459672,0.1,3363.0,3362.7,0.7718]
[1732257460517,3.59140642,3363.0,3362.4,0.7718]
[1732257460725,4.02568706,3363.0,3362.4,0.7718]
[1732257460935,4.02568706,3363.0,3361.2,0.7718]
[1732257461140,4.02568706,3363.0,3361.4,0.7718]
[1732257461380,4.02568706,3363.0,3361.6,0.7718]
[1732257461537,3.7964,3362.9,3361.6,0.7718]
[1732257461728,3.49140642,3362.7,3361.6,0.7718]
[1732257463345,3.49140642,3362.4,3361.6,0.7718]
[1732257463516,0.7964,3362.3,3361.6,0.7718]
[1732257464159,3.49140642,3362.1,3360.6,0.7673]
[1732257464364,3.49140642,3361.8,3360.6,0.7673]
[1732257465172,0.7964,3361.7,3360.6,0.7673]
[1732257469032,3.7964,3361.7,3360.6,0.7673]
[1732257469825,0.55,3361.6,3360.6,0.7673]
[1732257470034,3.0,3361.4,3360.3,0.7673]
[1732257470464,0.7964,3361.3,3360.3,0.7673]
[1732257471142,3.0,3360.8,3359.9,0.7673]
[1732257471486,0.7964,3360.7,3359.9,0.7673]
[1732257471960,0.55,3360.6,3359.9,0.7673]
[1732257473169,0.7964,3360.7,3359.9,0.7673]
[1732257473340,0.55,3360.6,3359.9,0.7673]
[1732257473865,0.7964,3360.7,3359.9,0.7673]
[1732257475169,0.55,3360.6,3359.9,0.7673]
[1732257475341,0.55,3360.6,3359.6,0.7673]
[1732257475660,3.0,3360.5,3359.6,0.7673]
[1732257475866,4.04140642,3360.6,3359.6,0.7673]
[1732257476163,0.52665871,3360.5,3359.6,0.7673]
[1732257476965,4.28780642,3360.3,3359.2,0.7673]
[1732257477125,3.49140642,3360.0,3359.2,0.7673]
[1732257479650,3.49140642,3360.0,3359.3,0.2968]
[1732257482664,0.7964,3359.9,3358.7,0.2968]
[1732257482866,3.7964,3359.9,3358.7,0.2968]
[1732257483055,0.7964,3359.5,3358.7,0.2968]
[1732257485585,3.7964,3359.5,3358.2,0.3104748]
[1732257485788,0.7964,3359.1,3358.2,0.3104748]
[1732257486150,3.49140642,3358.8,3358.2,0.3104748]
[1732257486387,0.7964,3358.7,3358.2,0.0136748]
[1732257486575,3.49140642,3358.5,3358.2,0.0136748]
[1732257486954,3.92018706,3358.5,3358.2,0.0136748]
[1732257487189,0.7964,3358.3,3357.3,0.875]
[1732257487484,0.7964,3357.5,3357.3,0.875]
[1732257487647,0.42878064,3357.4,3357.3,0.875]
[1732257487853,0.7964,3357.5,3357.3,0.875]
[1732257491394,3.49140642,3357.6,3357.3,0.875]
[1732257491557,0.7604,3357.9,3357.3,0.875]
[1732257491753,3.49140642,3358.0,3357.3,0.875]
[1732257492171,3.49140642,3358.0,3357.3,1.03816]
[1732257492370,0.7604,3358.2,3357.3,1.03816]
[1732257492668,3.49140642,3358.0,3357.3,1.03816]
[1732257492852,3.49140642,3358.0,3357.3,0.875]
[1732257493556,3.49140642,3357.6,3357.3,0.875]
[1732257494263,0.7891,3357.5,3357.3,0.875]
[1732257496689,0.875,3357.4,3357.3,0.875]
[1732257496998,1.69055064,3357.4,3357.3,0.875]
[1732257498189,0.81555064,3357.4,3357.3,0.875]
[1732257498613,1.6641,3357.5,3357.3,0.875]
[1732257498759,3.49140642,3357.6,3357.3,0.875]
[1732257499473,1.978752,3357.8,3357.3,0.875]
[1732257500891,0.7891,3358.1,3357.3,0.875]
[1732257501098,3.49140642,3358.2,3357.4,0.22033852]
[1732257501255,3.49140642,3358.2,3357.3,1.0677]
[1732257501256,3.49140642,3358.2,3357.5,0.51716847]
[1732257501455,3.49140642,3358.2,3357.6,0.97556847]
[1732257501773,4.28050642,3358.5,3357.7,0.22042456]
[1732257501975,4.28050642,3358.5,3357.8,0.51722456]
[1732257502287,4.28050642,3358.5,3357.9,0.22042456]
[1732257502606,1.189365,3358.7,3357.8,0.2968]
[1732257502805,1.189365,3358.7,3357.9,0.22049289]
[1732257502969,1.189365,3358.7,3357.8,0.2968]
[1732257502970,0.54698714,3358.6,3358.0,0.51729289]
[1732257503292,0.54698714,3358.6,3358.0,0.2968]
[1732257503658,3.49140642,3358.5,3357.7,0.2968]
[1732257503859,4.09309228,3358.5,3357.7,0.2968]
[1732257504059,3.49140642,3358.8,3357.6,0.2968]
[1732257504300,5.03570642,3359.1,3358.0,0.2968]
[1732257504607,4.28050642,3359.1,3358.0,0.2968]
[1732257506696,3.0,3359.3,3358.2,0.2968]
[1732257506870,3.49140642,3359.4,3358.4,0.2968]
[1732257507074,3.49140642,3359.4,3358.6,0.2968]
[1732257507324,3.92305706,3359.4,3358.6,0.2968]
[1732257507501,3.49140642,3359.1,3358.6,0.2968]
[1732257507703,0.43165064,3359.4,3358.6,0.2968]
[1732257507902,3.49140642,3359.2,3358.6,0.2968]
[1732257508124,3.0,3358.8,3357.8,0.828]
[1732257508414,3.49140642,3358.3,3357.5,0.828]
[1732257509187,3.49140642,3358.3,3357.6,0.2968]
[1732257509514,3.49140642,3358.6,3357.6,0.2968]
[1732257509664,0.43165064,3358.5,3357.6,0.2968]
[1732257510071,3.49140642,3358.2,3357.6,0.2968]
[1732257510378,0.8251,3358.1,3357.7,0.2968]
[1732257510576,3.8251,3358.1,3357.7,0.2968]
[1732257510791,0.73165064,3358.0,3357.7,0.2968]
[1732257511447,0.73165064,3358.0,3357.2,0.2968]
[1732257511934,3.49140642,3357.8,3357.2,0.2968]
[1732257513220,3.49140642,3357.8,3357.4,0.2968]
[1732257513537,4.29622213,3357.8,3357.6,0.2968]
[1732257513901,3.0,3357.7,3357.6,0.2968]
[1732257514098,3.72962221,3357.7,3357.6,0.2968]
[1732257514530,3.72962221,3357.7,3356.8,0.8063]
[1732257515840,0.811,3357.6,3356.8,0.8063]
[1732257516032,0.811,3357.6,3356.5,0.8063]
[1732257516033,3.0,3357.3,3356.5,0.8063]
[1732257516266,0.64914064,3357.2,3355.9,0.2968]
[1732257516469,3.49140642,3357.0,3355.9,0.2968]
[1732257517960,3.49140642,3357.0,3355.8,0.8063]
[1732257518732,3.49140642,3357.0,3355.8,1.1031]
[1732257519277,3.0,3357.3,3356.0,0.8063]
[1732257519433,0.3,3357.2,3356.0,0.8063]
[1732257519946,0.3,3357.2,3356.0,1.1031]
[1732257524644,4.26300642,3357.1,3356.0,1.1031]
[1732257524847,3.0,3357.0,3356.0,1.1031]
[1732257527051,0.7716,3357.1,3356.0,1.1031]
[1732257527780,3.49140642,3357.4,3355.1,0.38749757]
[1732257527781,3.49140642,3357.4,3356.2,0.2968]
[1732257527988,3.7716,3357.3,3356.3,0.7677]
[1732257528191,0.7716,3357.3,3356.3,0.7677]
[1732257530497,0.7716,3358.3,3356.8,0.2968]
[1732257530713,0.7716,3358.3,3357.0,0.2968]
[1732257530860,3.49140642,3357.9,3357.0,0.2968]
[1732257531060,0.7716,3357.7,3357.0,0.2968]
[1732257531375,0.7716,3357.7,3356.9,0.7677]
[1732257531554,0.7716,3357.7,3356.6,0.2968]
[1732257531555,3.49140642,3357.6,3356.6,0.2968]
[1732257532068,3.0,3357.5,3356.6,0.2968]
[1732257532391,3.7716,3356.8,3355.7,1.0645]
[1732257534072,0.7716,3356.8,3355.7,1.0645]
[1732257534276,3.49140642,3356.9,3355.7,1.0645]
[1732257534624,0.7716,3357.1,3355.7,1.0645]
[1732257534922,0.37716,3357.0,3355.8,1.0645]
[1732257536604,0.7716,3357.1,3355.8,1.0645]
[1732257536785,0.7716,3357.1,3356.0,0.2968]
[1732257537510,3.7716,3357.1,3356.0,0.2968]
[1732257540727,3.0,3357.1,3356.1,1.0645]
[1732257540884,3.72630064,3357.1,3356.1,1.0645]
[1732257543967,0.72630064,3357.1,3356.1,1.0645]
[1732257545940,3.49140642,3356.8,3356.1,1.0645]
[1732257546141,1.12074064,3356.7,3356.1,1.0645]
[1732257546554,1.12074064,3356.7,3355.8,0.2968]
[1732257547548,4.12074064,3356.7,3355.8,0.2968]
[1732257549642,4.12074064,3356.7,3355.7,0.7677]
[1732257549873,0.79239368,3356.6,3355.7,1.0645]
[1732257552372,23.34914064,3356.7,3355.8,0.8002]
[1732257553452,20.34914064,3356.7,3355.8,0.8002]
[1732257555486,20.34914064,3356.7,3356.0,0.8002]
[1732257555645,20.0,3356.7,3356.0,0.8002]
[1732257558070,20.0,3356.7,3356.6,0.2968]
[1732257558378,20.0,3356.7,3356.6,1.097]
[1732257559959,20.0,3356.7,3356.6,1.647]
[1732257560162,20.0,3356.7,3356.6,1.8117]
[1732257560392,17.15785431,3356.7,3356.6,1.8117]
[1732257563375,17.15785431,3356.7,3356.6,2.03360812]
[1732257564101,17.15785431,3356.7,3356.6,1.48360812]
[1732257565065,17.15785431,3356.7,3356.6,1.2617]
[1732257566306,17.15785431,3356.7,3356.6,1.097]
[1732257568718,17.15785431,3356.7,3356.3,0.2968]
[1732257568880,17.15785431,3356.7,3356.5,0.2968]
[1732257569482,17.15785431,3356.7,3356.6,1.1264]
[1732257570623,17.15785431,3356.7,3356.0,0.2968]
[1732257570822,17.15785431,3356.7,3356.2,0.2968]
[1732257572016,17.15785431,3356.7,3356.0,0.2968]
[1732257574527,0.7714,3356.6,3355.6,0.2968]
[1732257574740,2.91346607,3356.6,3355.6,0.2968]
[1732257578033,0.7714,3356.5,3355.6,0.2968]
[1732257582736,17.97325431,3356.7,3355.6,0.32659712]
[1732257582923,17.97325431,3356.7,3355.6,0.2968]
[1732257583310,19.77057974,3356.7,3355.6,0.7413666]
[1732257583922,0.8154,3356.6,3355.6,0.2968]
[1732257586017,0.8154,3356.5,3355.6,0.2968]
[1732257586937,0.8154,3356.5,3355.6,0.32659995]
[1732257587165,0.8154,3356.5,3355.6,0.2968]
[1732257589761,17.15785431,3356.7,3355.8,0.2968]
[1732257589916,17.15785431,3356.7,3355.9,1.0906]
[1732257590931,17.15785431,3356.7,3355.9,1.12039474]
[1732257591276,17.15785431,3356.7,3355.9,1.0906]
[1732257591454,17.15785431,3356.7,3356.1,0.2968]
[1732257592660,17.15785431,3356.7,3356.0,0.2968]
[1732257598839,0.7749,3356.6,3356.0,0.2968]
[1732257599477,0.7749,3356.6,3355.6,0.2968]
[1732257599663,0.7749,3356.6,3355.8,0.2968]
[1732257600545,0.7749,3356.6,3355.6,0.2968]
[1732257602557,0.7749,3356.5,3355.7,0.2968]
[1732257603571,0.7749,3356.5,3355.2,0.2968]
[1732257604369,0.7749,3355.2,3354.8,0.1501924]
[1732257604548,3.0,3355.2,3354.8,0.1501924]
[1732257604744,0.7749,3355.1,3354.8,0.1501924]
[1732257604987,0.7749,3355.0,3354.8,0.1501924]
[1732257605187,1.22988,3354.9,3354.8,0.1501924]
[1732257605501,4.72128642,3354.9,3354.8,0.1501924]
[1732257605704,4.26630642,3354.9,3354.8,0.1501924]
[1732257606260,7.97806689,3354.9,3354.8,0.1501924]
[1732257606890,1.48666047,3354.9,3354.8,0.1501924]
[1732257607193,0.7749,3354.9,3354.8,0.1501924]
[1732257607355,1.04831228,3354.9,3354.8,0.1501924]
[1732257607555,0.7749,3354.9,3354.8,0.1501924]
[1732257607999,1.04825263,3354.9,3354.8,0.1501924]
[1732257608157,1.25557958,3354.9,3354.8,0.1501924]
[1732257608356,0.98222695,3354.9,3354.8,0.1501924]
[1732257608600,1.25521003,3354.9,3354.8,0.1501924]
[1732257609352,4.47363337,3354.9,3354.8,0.1501924]
[1732257609857,4.74644885,3354.9,3354.8,0.1501924]
[1732257610401,4.47363337,3354.9,3354.8,0.1501924]
[1732257610622,4.74628138,3354.9,3354.8,0.1501924]
[1732257610897,4.74629993,3354.9,3354.8,0.1501924]
[1732257611099,7.74629993,3354.9,3354.8,0.1501924]
[1732257611657,4.25489351,3354.9,3354.8,0.1501924]
[1732257612001,7.74629993,3354.9,3354.8,0.1501924]
[1732257612168,7.47363337,3354.9,3354.8,0.1501924]
[1732257614188,7.74587565,3354.9,3354.8,0.1501924]
[1732257614399,7.47363337,3354.9,3354.8,0.1501924]
[1732257614597,0.55,3354.7,3354.6,0.005]
[1732257614798,1.5860367,3354.7,3354.6,0.005]
[1732257615007,1.0360367,3354.7,3354.6,0.005]
[1732257615174,0.7639,3354.7,3354.6,0.005]
[1732257616985,1.03584918,3354.7,3354.6,0.005]
[1732257617197,4.7427046,3354.7,3354.6,0.005]
[1732257617711,1.7427046,3354.7,3354.6,0.005]
[1732257619365,17.15285431,3354.0,3353.2,0.035175]
[1732257619572,0.7639,3353.9,3353.2,0.035175]
[1732257619870,0.7639,3353.9,3353.3,0.2968]
[1732257620499,17.15285431,3354.0,3353.3,0.2968]
[1732257621384,0.7639,3353.5,3353.2,0.035175]
[1732257625091,3.49140642,3353.4,3353.2,0.035175]
[1732257625289,0.7639,3353.3,3353.2,0.035175]
[1732257628495,16.23767931,3352.0,3351.8,0.32662746]
[1732257628712,16.23767931,3352.0,3351.9,1.1251]
[1732257629020,16.23767931,3352.0,3351.9,1.53761]
[1732257629186,16.23767931,3352.0,3351.9,1.1251]
[1732257630105,16.23767931,3352.0,3351.7,0.2968]
[1732257630709,17.03607931,3352.0,3351.7,0.2968]
[1732257630897,1.70360793,3351.9,3351.7,0.2968]
[1732257631203,1.70360793,3351.9,3351.5,0.2968]
[1732257632396,16.23767931,3352.0,3351.5,1.1251]
[1732257632624,16.23767931,3352.0,3351.6,0.2968]
[1732257632931,16.23767931,3352.0,3351.7,1.1251]
[1732257633982,16.23767931,3352.0,3351.9,0.2968]
[1732257634185,16.23767931,3352.0,3351.9,1.1251]
[1732257634723,16.23767931,3352.0,3351.9,1.6751]
[1732257636320,16.23767931,3352.0,3351.9,1.1251]
[1732257639300,16.23767931,3352.0,3351.5,1.1251]
[1732257639501,16.15215912,3352.0,3351.5,1.1251]
[1732257640435,16.15215912,3352.0,3351.5,0.2968]
[1732257641362,17.84721503,3352.0,3351.5,0.2968]
[1732257641705,16.15215912,3352.0,3351.5,0.2968]
[1732257642639,16.15215912,3352.0,3351.9,0.2968]
[1732257642843,16.15215912,3352.0,3351.9,0.8468]
[1732257643903,16.15215912,3352.0,3351.9,1.20162354]
[1732257644919,14.60993966,3352.0,3351.9,2.32614937]
[1732257645120,12.56475962,3352.0,3351.9,5.26722142]
[1732257645321,12.56475962,3352.0,3351.9,2.26722142]
[1732257645731,12.44267579,3352.0,3351.9,2.26722142]
[1732257646009,12.44267579,3352.0,3351.9,1.91239788]
[1732257646210,12.44267579,3352.0,3351.9,2.57738366]
[1732257646613,12.44267579,3352.0,3351.9,5.57738366]
[1732257647255,12.44267579,3352.0,3351.9,2.2674201]
[1732257647404,12.44267579,3352.0,3351.9,1.7174201]
[1732257648248,12.44267579,3352.0,3351.9,2.01348058]
[1732257648552,12.44267579,3352.0,3351.9,1.7174201]
[1732257648749,12.44267579,3352.0,3351.9,2.2674201]
[1732257649416,12.14587579,3352.0,3351.9,2.2674201]
[1732257652720,12.14587579,3352.0,3351.9,5.2674201]
[1732257653553,11.26196024,3352.0,3351.9,5.2774201]
[1732257653892,2.48949926,3352.0,3351.9,5.2774201]
[1732257654050,0.813,3353.9,3352.4,0.2968]
[1732257654258,0.813,3353.9,3352.8,0.2968]
[1732257654425,0.813,3353.9,3353.0,0.2968]
[1732257654622,0.813,3353.9,3352.5,0.829]
[1732257654623,0.813,3353.9,3353.2,0.2968]
[1732257655750,0.813,3353.9,3353.1,0.2968]
[1732257656250,0.813,3353.9,3352.8,0.41271983]
[1732257656251,0.813,3353.9,3353.3,0.2968]
[1732257657224,0.813,3353.9,3353.4,0.2968]
[1732257658251,0.813,3353.9,3352.9,0.2968]
[1732257659381,0.813,3353.9,3353.0,0.2968]
[1732257660259,0.813,3353.9,3352.6,0.2968]
[1732257660429,0.813,3353.9,3352.6,0.70938]
[1732257660631,0.813,3353.9,3352.6,0.2968]
[1732257661136,4.30440642,3353.9,3352.6,0.2968]
[1732257661389,0.813,3353.7,3352.2,0.2968]
[1732257661554,0.813,3353.5,3352.2,0.2968]
[1732257662565,0.813,3353.5,3352.2,3.2968]
[1732257662768,0.813,3353.5,3352.4,0.2968]
[1732257663850,0.813,3353.5,3352.3,0.3554305]
[1732257663851,0.813,3353.5,3352.3,0.2968]
[1732257664058,0.813,3353.5,3352.5,0.2968]
[1732257665260,0.813,3353.5,3352.4,3.2968]
[1732257665624,0.813,3353.5,3352.4,0.2968]
[1732257665862,0.813,3353.5,3352.4,3.2968]
[1732257666161,0.813,3353.5,3352.6,0.2968]
[1732257667041,0.813,3353.5,3352.4,3.2968]
[1732257667925,0.813,3353.5,3352.4,0.2968]
[1732257668154,0.813,3353.5,3352.5,0.2968]
[1732257668557,0.813,3353.5,3352.7,0.2968]
[1732257669462,0.813,3353.5,3352.5,0.2968]
[1732257669831,0.27417583,3353.4,3352.5,0.2968]
[1732257670027,0.813,3353.5,3352.5,0.62648]
[1732257670261,0.813,3353.3,3352.5,0.2968]
[1732257670429,0.813,3353.1,3351.9,0.2968]
[1732257670837,0.813,3352.9,3351.9,0.2968]
[1732257671472,0.27432996,3352.8,3351.9,0.2968]
[1732257671826,0.813,3352.9,3351.9,0.2968]
[1732257672027,0.27429139,3352.8,3351.9,0.2968]
[1732257672228,0.813,3352.9,3351.9,0.2968]
[1732257672428,0.813,3352.9,3351.5,0.02983218]
[1732257672429,0.8131,3352.7,3351.5,1.1048]
[1732257672686,0.27442835,3352.6,3351.5,0.2968]
[1732257672901,0.8131,3352.5,3351.7,0.2968]
[1732257673047,0.8131,3352.5,3351.4,0.1501924]
[1732257673048,0.27442835,3352.4,3351.5,0.2968]
[1732257673254,0.8131,3352.2,3351.5,0.2968]
[1732257673593,0.81568117,3352.5,3351.5,0.2968]
[1732257673594,0.8131,3352.0,3351.5,0.2968]
[1732257675258,3.8131,3353.0,3351.5,0.2968]
[1732257675459,0.71174472,3352.9,3351.8,0.2968]
[1732257675689,0.8131,3353.0,3351.8,0.32663107]
[1732257675996,0.27377288,3352.9,3351.8,0.2968]
[1732257677401,0.8131,3353.0,3351.8,0.2968]
[1732257678090,0.27367563,3352.9,3351.8,0.2968]
[1732257678262,0.8131,3353.0,3351.8,0.2968]
[1732257678988,0.27366551,3352.9,3351.8,0.2968]
[1732257679192,0.8131,3353.0,3351.8,0.70728]
[1732257679401,0.8131,3352.8,3351.8,0.70728]
[1732257679607,0.8131,3352.8,3351.9,0.2968]
[1732257680372,0.27347427,3352.7,3351.9,0.2968]
[1732257680723,0.8131,3352.5,3351.5,0.2968]
[1732257681988,0.8131,3352.3,3351.5,0.2968]
[1732257682568,0.8131,3352.3,3351.7,1.1048]
[1732257682773,0.8131,3352.8,3351.7,1.1048]
[1732257683017,0.8131,3352.8,3351.9,0.2968]
[1732257683223,0.8131,3352.8,3352.0,0.8468]
[1732257683379,0.01,3354.4,3352.0,0.8468]
[1732257683380,0.8131,3353.2,3352.3,0.8468]
[1732257683579,0.8131,3353.2,3352.5,0.8468]
[1732257683946,0.43720112,3353.7,3352.5,0.8468]
[1732257683947,0.8131,3353.7,3352.5,0.8468]
[1732257684122,0.27330906,3353.6,3352.5,0.8468]
[1732257684279,0.8131,3353.7,3352.5,0.8468]
[1732257684479,0.27334747,3353.6,3352.7,0.2968]
[1732257684675,0.8131,3353.7,3352.7,1.1048]
[1732257685913,3.8131,3353.7,3352.7,1.1048]
[1732257686113,0.27338842,3353.6,3352.7,1.1048]
[1732257686318,3.8131,3353.7,3352.7,1.1048]
[1732257686319,0.8131,3353.7,3352.7,1.1048]
[1732257686519,0.27341672,3353.6,3352.7,1.1048]
[1732257686983,0.73120903,3353.6,3352.5,0.2968]
[1732257687188,0.45779231,3353.6,3352.5,0.2968]
[1732257687600,0.27348815,3353.5,3352.5,0.2968]
[1732257687804,0.8228,3353.4,3352.5,0.2968]
[1732257687991,0.778044,3353.3,3352.5,0.2968]
[1732257688194,0.50454869,3353.3,3352.5,0.2968]
[1732257689019,0.27362237,3353.2,3352.5,0.2968]
[1732257689221,0.50454869,3353.3,3352.5,0.2968]
[1732257689540,0.27373782,3353.2,3352.5,0.2968]
[1732257689740,0.50454869,3353.3,3352.5,0.2968]
[1732257690048,0.48187551,3353.2,3352.5,0.2968]
[1732257690194,0.75559998,3353.2,3352.5,0.2968]
[1732257690390,0.8228,3353.1,3352.0,0.2968]
[1732257690893,0.2737185,3353.0,3352.0,0.2968]
[1732257691097,0.2737185,3353.0,3352.2,0.2968]
[1732257691292,3.49140642,3353.1,3352.2,0.2968]
[1732257691532,0.27372258,3352.9,3352.2,0.2968]
[1732257691706,1.49829807,3353.0,3352.2,0.2968]
[1732257692032,0.70152322,3352.9,3352.0,0.2968]
[1732257692333,0.27372258,3352.8,3352.0,0.2968]
[1732257692497,0.55,3352.8,3352.0,0.2968]
[1732257692830,0.55,3352.9,3352.0,0.2968]
[1732257693638,1.03280064,3352.9,3352.0,0.2968]
[1732257694336,0.7866,3352.6,3352.1,0.2968]
[1732257694492,0.55,3352.5,3352.1,0.2968]
[1732257694692,0.55,3352.3,3352.1,0.2968]
[1732257695315,1.3366,3352.2,3352.1,0.2968]
[1732257695514,0.7866,3352.2,3351.5,0.2968]
[1732257699146,0.82389256,3352.1,3351.5,0.2968]
[1732257699343,0.75932932,3352.1,3351.5,0.2968]
[1732257701405,0.55,3352.1,3351.5,0.2968]
[1732257702753,0.8018,3351.8,3351.5,0.2968]
[1732257702918,1.3518,3352.1,3351.5,0.2968]
[1732257703718,0.8018,3352.4,3351.6,0.02983695]
[1732257703917,0.8018,3352.4,3351.5,1.0739]
[1732257705543,0.55,3352.6,3351.9,0.2968]
[1732257705848,0.8018,3353.0,3352.1,0.2968]
[1732257706047,0.27382174,3352.9,3352.1,0.2968]
[1732257706259,0.8018,3353.0,3352.1,0.2968]
[1732257706754,0.8018,3353.3,3352.1,0.2968]
[1732257706971,0.27389613,3353.2,3352.4,0.2968]
[1732257707116,0.43823381,3353.8,3352.7,0.7771]
[1732257707319,0.27383582,3353.7,3352.8,0.2968]
[1732257707554,0.42932064,3354.0,3352.8,0.2968]
[1732257707765,0.27385016,3353.9,3353.0,0.2968]
[1732257708537,0.27385016,3353.9,3353.0,0.32662141]
[1732257708761,0.42932064,3354.0,3353.0,0.32662141]
[1732257708972,0.8018,3354.1,3353.2,0.2968]
[1732257709262,1.23112064,3354.1,3353.2,0.2968]
[1732257709570,1.23112064,3354.1,3353.1,0.7771]
[1732257709571,0.27366298,3354.0,3353.1,0.7771]
[1732257710287,0.55,3353.9,3353.1,0.7771]
[1732257710423,0.55,3354.0,3353.1,0.7771]
[1732257711257,1.23112064,3354.1,3353.1,0.7771]
[1732257711471,0.8018,3354.1,3353.1,0.7771]
[1732257711656,0.8018,3354.1,3352.7,0.02981975]
[1732257711657,0.7932,3354.9,3353.3,0.7789]
[1732257711864,0.7932,3355.5,3353.4,0.80871467]
[1732257712162,0.27363788,3355.4,3353.8,0.7789]
[1732257712346,0.27363788,3355.4,3353.7,0.2975]
[1732257712347,0.27363788,3355.4,3354.0,0.7789]
[1732257712524,0.7932,3355.5,3354.0,0.7789]
[1732257712730,0.27343192,3355.4,3354.2,0.7789]
[1732257712950,0.27344985,3355.7,3354.4,0.7789]
[1732257713128,0.42846064,3355.7,3354.4,0.7789]
[1732257713660,0.7932,3355.4,3354.4,0.7789]
[1732257714077,0.7932,3355.0,3353.9,0.7789]
[1732257714276,0.7932,3355.0,3353.5,0.7789]
[1732257714277,0.55,3354.9,3353.5,0.7789]
[1732257714479,0.55,3354.7,3353.5,0.7789]
[1732257714844,0.55,3354.8,3353.5,0.7789]
[1732257715045,0.55,3354.6,3353.5,0.7789]
[1732257716764,0.55,3354.6,3353.7,0.7789]
[1732257718561,0.7932,3354.5,3353.4,0.7789]
[1732257718765,0.55,3354.3,3353.4,0.7789]
[1732257719564,0.55,3354.3,3353.5,0.2975]
[1732257725439,0.15203661,3354.4,3353.5,0.2975]
[1732257725882,0.7932,3354.8,3353.5,0.3273151]
[1732257726234,0.7932,3354.8,3353.7,0.2975]
[1732257726433,0.7932,3354.8,3353.7,0.32731362]
[1732257726680,0.7932,3354.8,3353.8,0.02981362]
[1732257726835,0.7932,3355.3,3354.0,0.2975]
[1732257727040,1.44234064,3355.3,3354.0,0.32731112]
[1732257727238,0.7932,3355.3,3354.0,0.2975]
[1732257727552,0.7932,3355.3,3354.8,0.57778]
[1732257728673,0.7932,3355.1,3354.8,0.57778]
[1732257728882,4.28460642,3355.1,3354.8,0.57778]
[1732257729542,0.40414064,3355.3,3354.9,0.2975]
[1732257730035,0.7932,3355.4,3354.9,0.2975]
[1732257730436,3.49140642,3355.9,3354.9,0.2975]
[1732257730636,0.7932,3355.8,3354.9,0.2975]
[1732257731075,3.7932,3355.8,3354.9,0.2975]
[1732257731543,0.7932,3355.8,3355.1,0.2975]
[1732257732274,0.772,3356.2,3355.1,0.2975]
[1732257732483,0.27344271,3356.1,3355.1,0.2975]
[1732257732664,0.772,3356.2,3355.1,0.2975]
[1732257732876,0.27336909,3356.1,3355.1,0.2975]
[1732257733181,0.772,3355.9,3355.1,0.2975]
[1732257733343,3.49140642,3355.7,3355.1,0.2975]
[1732257733538,0.55,3355.6,3355.1,0.2975]
[1732257733941,3.772,3355.9,3355.1,0.2975]
[1732257734361,0.72634064,3355.8,3354.9,0.2975]
[1732257734580,0.72634064,3355.8,3354.8,0.57778]
[1732257734581,0.72634064,3355.8,3355.1,0.2975]
[1732257734780,0.772,3356.5,3355.3,1.0818]
[1732257734994,0.27372254,3356.4,3355.3,1.0818]
[1732257735141,1.19957064,3356.5,3355.3,1.0818]
[1732257735142,0.772,3356.5,3355.3,1.0818]
[1732257735506,0.772,3356.5,3355.6,0.2975]
[1732257735787,0.772,3357.2,3355.9,0.2975]
[1732257735944,0.27385821,3357.1,3355.9,0.2975]
[1732257736483,0.772,3356.2,3355.1,0.2975]
[1732257736787,0.42634064,3356.1,3355.1,0.2975]
[1732257737075,0.42634064,3356.1,3355.3,0.2975]
[1732257738182,0.772,3356.5,3355.3,0.2975]
[1732257738498,0.55,3356.7,3355.6,0.2975]
[1732257739146,0.55,3356.5,3355.6,0.2975]
[1732257740490,0.772,3356.4,3355.6,0.2975]
[1732257740991,4.12114064,3356.8,3355.6,0.2975]
[1732257741162,0.27367174,3356.7,3355.6,0.2975]
[1732257741364,3.772,3356.8,3355.6,0.2975]
[1732257741571,0.27362554,3356.7,3355.6,0.2975]
[1732257742077,3.49140642,3356.5,3355.6,0.2975]
[1732257742287,0.82362554,3356.4,3355.6,0.2975]
[1732257742504,0.55,3356.1,3355.1,0.2975]
[1732257742797,0.55,3355.9,3355.1,0.2975]
[1732257745783,3.772,3356.2,3355.1,0.2975]
[1732257745992,0.99994092,3356.1,3355.2,0.7843]
[1732257746294,3.772,3356.5,3355.3,0.2975]
[1732257746651,0.27362194,3356.4,3355.3,0.2975]
[1732257746855,0.75370284,3356.3,3355.3,0.2975]
[1732257747389,0.75370284,3356.3,3355.3,1.0697]
[1732257748113,0.75370284,3356.3,3355.5,0.2975]